bitfinex-derivatives/quotes_ETHF0:USTF0_20260207
["timestamp","ask_amount","ask_price","bid_price","bid_amount"]
[1770466021665,11.56006155,2038.6,2037.2,0.42618691]
[1770466021966,11.08718256,2038.5,2036.6,1.8629449]
[1770466022166,11.08718256,2038.5,2036.4,1.84703271]
[1770466022167,10.84963865,2038.1,2036.4,1.84703271]
[1770466022471,10.84963865,2037.9,2036.5,1.84703271]
[1770466022961,10.85506805,2038.1,2036.7,1.84703271]
[1770466023161,0.0054294,2038.1,2037.0,1.84703271]
[1770466023470,8.78848723,2038.1,2037.0,1.84703271]
[1770466023670,10.84963865,2038.4,2037.0,1.84703271]
[1770466023867,8.78848723,2038.3,2037.0,1.84703271]
[1770466024067,10.76372581,2038.2,2037.0,1.84703271]
[1770466024266,10.76788935,2038.2,2037.0,1.84703271]
[1770466024468,10.76372581,2038.0,2036.5,2.8920366]
[1770466024864,0.00416354,2038.2,2036.5,2.8920366]
[1770466024865,19.55221304,2037.9,2036.5,2.8920366]
[1770466025069,10.76372581,2037.9,2036.5,2.8920366]
[1770466025267,19.55221304,2038.1,2036.5,2.8920366]
[1770466025470,8.78848723,2038.0,2036.6,2.8920366]
[1770466025672,8.78848723,2038.0,2036.7,2.8920366]
[1770466025864,0.00416354,2038.2,2036.9,2.88155764]
[1770466026066,11.10517084,2038.1,2036.9,2.88155764]
[1770466026470,11.10517084,2037.9,2036.9,2.88155764]
[1770466026669,11.10517084,2037.9,2036.5,2.17317545]
[1770466026870,11.10517084,2037.7,2036.5,2.17317545]
[1770466027272,11.10517084,2037.5,2036.5,2.17317545]
[1770466027667,11.10517084,2037.3,2036.5,2.17317545]
[1770466027878,19.25482192,2037.2,2036.4,2.1773809]
[1770466028175,11.10517084,2037.2,2036.4,2.1773809]
[1770466028570,11.10517084,2037.5,2036.4,2.1773809]
[1770466028970,11.10517084,2037.3,2036.4,2.1773809]
[1770466029178,11.10517084,2037.3,2036.4,0.00420545]
[1770466029372,11.10517084,2037.1,2036.1,1.93767134]
[1770466030075,11.30195327,2036.9,2035.5,1.94203184]
[1770466030275,11.30195327,2036.9,2035.5,1.94753813]
[1770466030476,11.30195327,2036.7,2035.5,1.94753813]
[1770466030674,11.30681632,2036.7,2035.5,1.94753813]
[1770466030871,8.14965108,2036.6,2035.5,1.94753813]
[1770466031375,7.3508943,2036.6,2035.6,1.94203184]
[1770466031885,11.30195327,2036.5,2035.6,1.94203184]
[1770466032583,6.87163992,2036.4,2035.6,1.94203184]
[1770466032784,5.75330317,2036.4,2035.6,1.94203184]
[1770466033880,3.82859198,2036.9,2035.7,0.63411045]
[1770466034185,11.13679348,2037.0,2035.7,0.63411045]
[1770466034374,15.22456876,2036.9,2035.7,0.63411045]
[1770466034577,11.39597678,2036.8,2035.7,0.63411045]
[1770466034783,11.39597678,2037.2,2035.8,0.7498543]
[1770466034980,11.40167283,2037.2,2035.8,0.7498543]
[1770466035184,11.39597678,2037.0,2035.8,0.7498543]
[1770466035684,3.82859198,2036.9,2035.9,0.7498543]
[1770466035891,3.82859198,2036.9,2036.0,0.7498543]
[1770466036284,15.19306091,2036.9,2036.0,0.7498543]
[1770466036888,14.87361631,2036.9,2036.0,0.7498543]
[1770466037382,11.36446893,2036.8,2036.0,0.7498543]
[1770466037786,14.87361631,2036.7,2036.0,0.7498543]
[1770466037987,11.36446893,2036.7,2036.0,0.7498543]
[1770466038588,11.38755969,2036.5,2035.7,0.24582]
[1770466038787,11.38755969,2036.5,2035.7,1.01250848]
[1770466038985,14.89670707,2036.4,2035.7,1.01250848]
[1770466039181,11.38755969,2036.4,2035.5,3.62442144]
[1770466039389,11.38755969,2036.2,2035.3,0.76668848]
[1770466039688,11.38755969,2036.4,2035.3,0.76668848]
[1770466039895,11.38755969,2036.1,2034.8,0.76668848]
[1770466040091,11.38755969,2036.1,2034.6,0.75711723]
[1770466040288,11.39234532,2035.9,2034.6,0.75711723]
[1770466040485,11.39234532,2035.9,2034.6,0.76093716]
[1770466040691,11.39234532,2035.7,2034.2,0.75711723]
[1770466040991,11.39234532,2035.5,2034.0,0.75711723]
[1770466041392,3.50914738,2035.4,2033.8,0.75711723]
[1770466041593,11.39234532,2035.3,2034.0,1.00314723]
[1770466041793,11.39704594,2035.3,2034.1,0.75711723]
[1770466042186,3.50914738,2035.2,2034.1,0.75711723]
[1770466042390,11.45895412,2035.1,2034.1,0.75711723]
[1770466042591,11.45895412,2035.1,2034.0,0.00551154]
[1770466042792,11.45895412,2034.9,2034.0,0.00551154]
[1770466043290,11.45895412,2034.7,2034.0,0.00551154]
[1770466043690,3.50914738,2034.6,2033.8,0.62389962]
[1770466043890,11.45895412,2034.5,2033.8,0.62389962]
[1770466044092,11.45895412,2035.0,2033.8,0.62389962]
[1770466044491,3.50914738,2034.9,2033.8,0.62389962]
[1770466044686,15.03981444,2034.9,2033.8,0.62865029]
[1770466045196,11.53066706,2034.8,2033.8,0.62865029]
[1770466045591,11.53066706,2034.6,2033.8,0.62865029]
[1770466045989,11.53066706,2034.4,2033.8,0.00475067]
[1770466046396,0.00470062,2035.3,2033.8,0.00475067]
[1770466046397,15.00715303,2034.3,2033.8,0.00475067]
[1770466046597,11.49800565,2034.8,2033.8,0.55054723]
[1770466047096,11.49800565,2035.0,2034.1,0.54579656]
[1770466047489,3.50914738,2034.9,2034.1,0.54579656]
[1770466047797,11.49800565,2035.2,2034.1,0.54579656]
[1770466047798,3.50914738,2035.1,2034.1,0.54579656]
[1770466049291,0.00470062,2035.3,2034.3,3.0432735]
[1770466049596,3.50914738,2035.2,2034.4,0.56689503]
[1770466049795,0.00470062,2035.3,2034.6,0.24596]
[1770466049990,11.48745642,2035.7,2034.7,0.56689503]
[1770466050193,15.03171648,2035.6,2034.7,0.56689503]
[1770466050394,11.5225691,2035.6,2034.7,0.56689503]
[1770466050593,3.50914738,2035.5,2034.6,0.24596]
[1770466050796,11.5225691,2035.4,2034.6,0.24596]
[1770466050992,0.00350203,2035.4,2034.7,0.49666967]
[1770466052000,11.52607113,2035.4,2034.7,0.49666967]
[1770466052202,11.38823436,2035.2,2034.1,1.01134915]
[1770466052500,11.38823436,2035.2,2034.2,0.76533915]
[1770466052699,11.38823436,2035.0,2034.1,0.24601]
[1770466053200,11.38823436,2034.8,2034.1,0.24601]
[1770466053403,11.06847277,2034.8,2033.8,0.00475067]
[1770466053598,11.30195327,2034.6,2033.8,0.00475067]
[1770466053805,11.30195327,2034.6,2033.1,1.08510074]
[1770466054006,11.30195327,2034.4,2033.1,1.08510074]
[1770466054200,11.30195327,2034.4,2033.0,0.24615]
[1770466054400,11.30195327,2034.2,2033.0,0.24615]
[1770466054908,11.30195327,2034.0,2033.0,0.25087209]
[1770466055303,11.30195327,2033.8,2033.0,0.00472209]
[1770466055507,11.30672376,2033.8,2032.4,0.97900143]
[1770466055700,3.50914738,2033.7,2033.0,0.97900143]
[1770466056102,0.00477049,2033.8,2033.0,0.97900143]
[1770466056304,3.51391787,2033.8,2033.1,1.05542725]
[1770466056505,3.51391787,2033.8,2033.2,1.30154725]
[1770466056906,0.00477049,2033.8,2033.2,1.30154725]
[1770466057103,0.24591,2035.0,2033.4,1.05542725]
[1770466057304,11.25789648,2034.4,2033.5,1.29674676]
[1770466057799,3.50914738,2034.3,2033.7,1.05065676]
[1770466058204,14.77388712,2034.3,2033.6,0.24608]
[1770466058811,14.77388712,2034.3,2033.6,1.27102794]
[1770466059014,3.50914738,2034.2,2033.6,1.27102794]
[1770466059203,11.25959503,2034.8,2033.5,4.06822144]
[1770466059403,11.25959503,2034.8,2033.4,0.2461]
[1770466060110,11.26319907,2034.8,2033.4,0.2461]
[1770466060417,11.26319907,2034.8,2033.4,3.937713]
[1770466060606,11.26319907,2034.8,2033.8,0.24605]
[1770466060806,11.26319907,2034.8,2033.8,1.33808606]
[1770466061610,11.25789648,2035.3,2034.4,0.24598]
[1770466061812,11.25789648,2035.7,2034.7,1.09203606]
[1770466062613,11.25789648,2035.7,2034.7,1.33797606]
[1770466062808,11.26165736,2035.7,2034.7,1.3429478]
[1770466063010,11.26165736,2035.7,2035.1,1.12961944]
[1770466063011,0.00376088,2035.7,2035.1,1.12961944]
[1770466063211,11.25789648,2036.0,2035.1,1.12961944]
[1770466063716,11.25789648,2036.5,2035.5,1.37546944]
[1770466063913,11.25789648,2036.5,2035.5,0.24585]
[1770466064113,11.26326768,2036.5,2035.5,0.24585]
[1770466064616,11.26326768,2036.5,2035.7,1.03515064]
[1770466065614,11.25789648,2036.7,2035.7,1.03515064]
[1770466066615,11.2642135,2036.7,2035.7,1.03515064]
[1770466067209,11.2642135,2036.7,2035.9,3.04115259]
[1770466067417,11.2642135,2036.7,2035.8,1.28983866]
[1770466068212,11.2642135,2036.7,2035.6,5.88682953]
[1770466068410,10.94473926,2036.7,2035.1,4.4836239]
[1770466068818,10.94473926,2036.7,2035.1,10.43557258]
[1770466069413,10.94473926,2036.7,2035.4,1.39204696]
[1770466071116,10.94473926,2036.7,2035.7,0.24582]
[1770466071316,10.94473926,2036.7,2035.7,1.77159143]
[1770466072110,10.94473926,2036.7,2036.0,1.46180915]
[1770466073221,10.46557443,2036.7,2036.0,1.70758915]
[1770466073617,11.25789648,2036.9,2036.0,1.70758915]
[1770466073818,11.25789648,2038.2,2036.2,2.00112553]
[1770466074013,11.25789648,2038.2,2036.1,0.24578]
[1770466074014,11.25789648,2038.2,2036.4,2.00112553]
[1770466074617,11.26353231,2038.2,2036.4,2.25268676]
[1770466075111,11.26353231,2038.2,2037.2,2.19746148]
[1770466075315,11.26353231,2038.2,2037.2,0.24564]
[1770466075512,11.26353231,2038.2,2037.2,2.19746148]
[1770466075719,11.26353231,2038.2,2037.3,2.19744148]
[1770466075914,11.26353231,2038.2,2037.0,2.84567694]
[1770466075915,0.00563583,2038.2,2037.6,2.19742148]
[1770466076822,0.00563583,2038.2,2037.6,0.2456]
[1770466077217,0.00563583,2038.2,2037.6,2.24728132]
[1770466077822,11.25789648,2038.7,2037.8,2.00168132]
[1770466078022,11.25789648,2038.7,2037.8,2.24724132]
[1770466078225,11.25789648,2039.4,2038.0,2.14814568]
[1770466078419,11.25789648,2039.3,2038.0,0.24555]
[1770466078722,11.25789648,2039.3,2038.0,2.14814568]
[1770466078923,11.26255972,2039.3,2038.2,2.14811568]
[1770466079523,11.26255972,2039.3,2038.5,1.90259568]
[1770466079721,11.26255972,2039.3,2038.5,2.14807568]
[1770466080119,0.00466324,2039.3,2038.5,2.14807568]
[1770466080817,0.21595108,2039.6,2038.6,1.7819414]
[1770466081015,11.47384756,2039.6,2038.6,0.24547]
[1770466081223,0.21595108,2039.6,2039.0,1.77727816]
[1770466081624,11.47384756,2039.6,2038.4,1.77727816]
[1770466082029,11.47956752,2039.6,2038.4,1.77727816]
[1770466082725,11.47956752,2039.6,2038.3,0.24551]
[1770466083520,11.47956752,2039.6,2038.0,0.00357976]
[1770466083719,11.47956752,2039.6,2038.0,2.10912303]
[1770466083922,11.47956752,2039.6,2038.0,0.00357976]
[1770466084930,11.25789648,2039.1,2037.1,2.60623918]
[1770466085424,11.25789648,2039.1,2037.3,2.36057918]
[1770466085617,11.25789648,2039.1,2037.5,2.36057918]
[1770466085824,11.25789648,2039.1,2037.5,2.60617918]
[1770466086023,11.25789648,2039.1,2037.5,2.61112262]
[1770466086922,11.25789648,2039.1,2037.7,6.1866463]
[1770466087522,11.25789648,2039.1,2037.8,2.13050435]
[1770466088225,11.25789648,2039.1,2037.7,4.30172195]
[1770466088428,15.31403843,2039.1,2037.5,0.00494344]
[1770466088636,15.31403843,2039.1,2037.0,2.18312602]
[1770466088637,10.8009255,2038.8,2037.0,0.24567]
[1770466088829,11.0463855,2038.8,2037.0,0.24567]
[1770466089023,10.8009255,2038.6,2037.0,0.24567]
[1770466089836,10.8009255,2038.6,2037.0,0.25004973]
[1770466090536,11.0464055,2038.6,2037.0,0.00437973]
[1770466090929,10.8009255,2038.6,2037.0,2.26750904]
[1770466091136,10.8009255,2038.6,2037.4,2.26307931]
[1770466091527,10.8009255,2038.6,2037.4,5.29902571]
[1770466091830,10.8009255,2038.6,2037.5,2.01746931]
[1770466092934,10.8009255,2038.6,2037.4,3.2815564]
[1770466094533,10.8009255,2038.6,2037.1,3.0359464]
[1770466094936,10.8009255,2038.6,2037.1,4.83935918]
[1770466095438,10.8009255,2038.6,2037.2,1.80341278]
[1770466096141,10.8009255,2038.6,2037.1,3.0359464]
[1770466096346,11.06261933,2039.4,2038.5,3.0359464]
[1770466096633,11.06261933,2039.4,2038.5,3.04080946]
[1770466096829,11.06261933,2039.4,2038.5,0.00486306]
[1770466098233,11.06261933,2039.4,2038.5,1.66437518]
[1770466098638,11.06261933,2039.4,2038.6,1.90498212]
[1770466099444,0.22167104,2039.6,2038.8,1.65951212]
[1770466099956,11.28429037,2039.6,2038.8,1.65951212]
[1770466100448,11.28429037,2039.6,2038.7,0.24546]
[1770466100649,11.28429037,2039.6,2038.7,2.12259294]
[1770466101350,0.22167104,2039.6,2039.0,1.87713294]
[1770466101546,11.06261933,2040.1,2039.0,1.87713294]
[1770466101745,11.06261933,2041.2,2039.3,1.9008519]
[1770466102052,11.06261933,2041.2,2039.6,1.9008119]
[1770466102649,11.06744569,2041.2,2039.6,1.9008119]
[1770466102849,11.06744569,2041.2,2039.8,0.24533]
[1770466103047,11.06744569,2041.2,2039.5,8.68959383]
[1770466103248,11.06744569,2041.2,2039.5,4.50474996]
[1770466103546,11.06744569,2041.2,2039.6,1.93133709]
[1770466103749,11.06744569,2041.2,2039.7,1.68598709]
[1770466104152,11.06744569,2041.2,2039.7,1.93132709]
[1770466104349,11.06744569,2041.2,2040.1,2.4038236]
[1770466104550,11.06744569,2041.2,2040.1,0.24529]
[1770466104749,11.06744569,2041.2,2040.1,2.4038236]
[1770466104948,11.06744569,2041.2,2040.1,0.005781]
[1770466105344,11.06744569,2041.2,2040.1,2.4096046]
[1770466105545,11.06261933,2042.7,2041.0,4.04402121]
[1770466105857,7.33148515,2044.7,2042.7,5.88966778]
[1770466106056,7.33148515,2044.7,2043.1,4.04402121]
[1770466106249,7.33148515,2044.7,2043.0,5.88966778]
[1770466106449,7.33148515,2044.7,2042.3,0.24503]
[1770466106450,11.37550636,2044.7,2042.4,5.95142562]
[1770466106651,11.06261933,2044.2,2042.4,5.95723528]
[1770466106851,11.06261933,2043.8,2042.4,0.00580966]
[1770466107147,11.06261933,2043.5,2041.4,4.04402121]
[1770466107353,11.30750933,2043.5,2041.7,5.95723528]
[1770466107555,11.30750933,2043.5,2041.5,5.95723528]
[1770466108357,11.30750933,2043.5,2041.5,5.96252294]
[1770466108752,11.30750933,2043.5,2041.5,0.00528766]
[1770466108954,11.06261933,2043.5,2041.5,0.00528766]
[1770466109159,11.06261933,2043.1,2041.5,0.00528766]
[1770466109357,11.30758933,2042.8,2040.7,5.8560216]
[1770466109554,11.06261933,2042.7,2040.7,5.8560216]
[1770466110247,11.06261933,2042.3,2040.3,6.0513918]
[1770466110460,11.06261933,2042.3,2040.3,6.05546246]
[1770466111053,11.06261933,2042.3,2040.7,6.0513918]
[1770466111458,11.06261933,2042.3,2041.1,6.0513918]
[1770466112458,11.06261933,2043.0,2041.1,6.0513918]
[1770466112866,11.06261933,2042.9,2040.7,5.30554254]
[1770466113259,11.06261933,2042.5,2040.7,5.30554254]
[1770466113859,11.06261933,2042.5,2040.9,5.30554254]
[1770466114060,0.00396426,2043.1,2041.1,2.87613219]
[1770466114261,11.06658359,2043.1,2041.0,5.81460028]
[1770466114463,11.06658359,2043.1,2041.6,2.87613219]
[1770466114853,11.31152359,2043.1,2040.7,4.28924121]
[1770466115163,11.06261933,2042.9,2040.7,4.28924121]
[1770466115363,11.30762933,2042.5,2040.8,2.87613219]
[1770466115964,11.30762933,2042.5,2040.3,0.00407066]
[1770466115965,11.06261933,2042.5,2041.0,2.86260714]
[1770466116757,11.06261933,2042.5,2041.0,3.10779714]
[1770466116958,11.06261933,2042.5,2041.3,3.37108448]
[1770466117673,11.06261933,2042.5,2040.9,3.37108448]
[1770466117962,11.06261933,2042.5,2040.6,3.37108448]
[1770466117963,11.30762933,2042.5,2040.6,3.37108448]
[1770466118168,11.06261933,2042.5,2040.6,3.61631448]
[1770466118368,4.04402121,2042.0,2040.5,5.30147096]
[1770466118566,11.7591389,2041.9,2040.3,0.00407066]
[1770466119173,11.7591389,2041.9,2040.3,4.17545147]
[1770466119773,11.5140589,2041.9,2040.3,4.17545147]
[1770466120172,11.5140589,2041.9,2040.4,3.85349721]
[1770466120467,11.5140589,2041.9,2040.6,3.85349721]
[1770466120669,11.5140589,2041.9,2040.8,3.85349721]
[1770466122067,11.5140589,2041.9,2041.0,3.85349721]
[1770466122669,0.245,2042.6,2041.0,3.85349721]
[1770466122670,11.5140589,2042.2,2041.0,3.85349721]
[1770466122973,11.5140589,2042.5,2041.3,0.24515]
[1770466123268,11.5140589,2042.5,2041.4,3.61117157]
[1770466123975,11.5140589,2042.5,2041.6,3.61117157]
[1770466124165,11.5140589,2042.8,2041.6,3.61117157]
[1770466124773,11.5140589,2042.8,2041.6,3.85628157]
[1770466125172,11.5140589,2042.8,2041.1,2.78213728]
[1770466125173,11.5140589,2043.4,2042.4,3.74143895]
[1770466125378,11.5140589,2043.4,2042.4,3.74773567]
[1770466125978,11.5140589,2043.4,2042.4,3.99275567]
[1770466126171,11.5140589,2043.8,2042.7,3.8649119]
[1770466126372,2.402,2045.1,2042.7,4.1098919]
[1770466126373,0.24475,2044.7,2042.7,4.1098919]
[1770466126571,11.5140589,2044.4,2042.9,3.8649119]
[1770466126878,11.5140589,2044.4,2043.1,3.8649119]
[1770466127475,11.5140589,2044.4,2043.1,4.1098419]
[1770466127779,11.5140589,2044.4,2043.3,3.8649119]
[1770466129476,11.5140589,2044.4,2042.8,2.78213728]
[1770466129477,11.5140589,2044.4,2043.0,3.81611661]
[1770466130675,11.5140589,2044.4,2042.6,2.78213728]
[1770466130875,11.5140589,2043.8,2042.4,0.00629672]
[1770466131380,11.5140589,2043.6,2041.7,3.83126208]
[1770466131679,4.02873014,2044.6,2041.4,4.0826988]
[1770466131680,11.5140589,2043.4,2041.4,4.0826988]
[1770466131973,11.5140589,2043.2,2041.4,4.0826988]
[1770466132370,11.51883629,2043.2,2041.4,4.08732843]
[1770466133280,11.51883629,2043.2,2041.5,3.83760634]
[1770466133576,11.51883629,2043.2,2041.5,4.08273634]
[1770466133778,11.5140589,2043.1,2041.5,8.59804359]
[1770466133982,11.5140589,2043.1,2042.1,0.24505]
[1770466134182,11.5140589,2043.1,2041.8,3.77182462]
[1770466134383,11.5140589,2043.1,2041.9,3.52673462]
[1770466134578,11.5140589,2043.1,2042.1,3.52673462]
[1770466134975,11.5140589,2043.1,2042.1,3.77178462]
[1770466135177,0.00477739,2043.2,2042.1,3.77178462]
[1770466135377,0.00477739,2043.2,2042.7,3.52673462]
[1770466135672,11.5140589,2044.9,2042.8,3.52673462]
[1770466135876,11.5140589,2044.9,2043.1,0.24493]
[1770466136076,11.5140589,2044.9,2043.2,3.77165462]
[1770466136273,11.5140589,2044.9,2043.3,3.85576552]
[1770466136482,11.52006556,2044.9,2043.5,3.85573552]
[1770466136678,11.52006556,2044.9,2043.6,3.61085552]
[1770466137185,11.52006556,2044.9,2043.7,3.61085552]
[1770466137876,4.02873014,2046.0,2043.5,0.24488]
[1770466137877,11.5140589,2045.7,2044.4,3.61085552]
[1770466138080,11.5140589,2045.5,2044.4,3.61085552]
[1770466138875,11.51753602,2045.5,2044.1,3.77593402]
[1770466139083,11.51753602,2045.5,2043.8,3.77593402]
[1770466142178,11.51753602,2045.5,2044.0,3.76790039]
[1770466142981,11.51753602,2045.5,2043.7,4.04951244]
[1770466143385,11.51753602,2045.5,2044.2,3.80465244]
[1770466143584,11.51753602,2045.5,2044.4,3.80465244]
[1770466144385,0.67506102,2047.1,2044.4,3.80465244]
[1770466144386,11.5140589,2046.5,2044.4,3.80465244]
[1770466144591,11.5140589,2046.5,2044.9,3.80523793]
[1770466144891,11.5140589,2046.3,2044.5,3.80523793]
[1770466145289,11.5140589,2046.6,2045.6,4.04986793]
[1770466145481,0.00215372,2046.5,2045.6,4.05389822]
[1770466145680,11.51871346,2046.6,2045.8,3.80523793]
[1770466145882,0.00465456,2046.6,2045.8,3.80523793]
[1770466146085,0.00465456,2046.6,2045.8,4.04984793]
[1770466146285,10.84856411,2046.6,2045.8,3.80523793]
[1770466146486,10.84856411,2046.6,2045.6,3.79815881]
[1770466147283,10.84175583,2046.4,2044.7,3.79815881]
[1770466147483,0.00215372,2046.5,2045.4,3.79815881]
[1770466147695,0.00465456,2046.6,2045.6,3.79815881]
[1770466147894,0.00215372,2046.5,2045.6,3.79815881]
[1770466148194,1.12325,2049.5,2044.9,4.98311821]
[1770466148387,10.84175583,2048.1,2045.8,4.09988449]
[1770466148591,10.84175583,2047.2,2045.7,5.54162957]
[1770466148791,11.08624583,2046.9,2044.9,1.37216617]
[1770466149392,10.84654825,2046.9,2045.0,0.2447]
[1770466149584,10.84654825,2046.9,2045.1,1.37216617]
[1770466150285,10.52856814,2046.9,2045.1,1.37216617]
[1770466151696,10.52856814,2046.9,2045.1,1.61685617]
[1770466151997,10.52856814,2046.9,2045.3,1.71302356]
[1770466153303,10.52856814,2046.9,2045.5,1.82099718]
[1770466153599,10.52856814,2046.9,2045.5,2.06563718]
[1770466153803,10.05169427,2046.9,2045.5,2.06563718]
[1770466154399,10.05169427,2046.9,2045.5,1.82099718]
[1770466155100,10.05169427,2046.9,2045.1,2.37787302]
[1770466155305,10.05169427,2046.9,2045.0,0.24471]
[1770466155597,11.49005772,2046.7,2045.0,2.62258302]
[1770466156493,11.49005772,2046.7,2045.2,2.71831415]
[1770466157193,11.49005772,2046.7,2045.5,2.47363415]
[1770466157394,11.49005772,2046.7,2045.4,2.71829415]
[1770466157999,11.49005772,2046.7,2045.6,2.47363415]
[1770466158902,4.93,2048.6,2045.6,2.47363415]
[1770466158903,11.49005772,2047.0,2046.3,0.24455]
[1770466159089,11.49005772,2048.0,2046.3,2.68522467]
[1770466159297,11.49005772,2048.6,2047.0,2.68514467]
[1770466159699,11.49005772,2048.6,2046.5,2.78213728]
[1770466159700,11.49005772,2048.6,2047.2,2.44067467]
[1770466159903,11.49005772,2048.6,2047.2,0.00564243]
[1770466160198,11.49395148,2048.6,2047.2,2.43914634]
[1770466161005,11.49395148,2048.6,2047.2,2.68358634]
[1770466161602,11.49395148,2048.6,2047.4,2.43350391]
[1770466162297,11.49395148,2048.6,2047.8,0.24437]
[1770466162698,11.49395148,2048.6,2047.4,5.46024873]
[1770466162899,11.49395148,2048.6,2047.4,2.64345767]
[1770466163201,11.49395148,2048.6,2047.2,2.8935401]
[1770466163905,11.49395148,2048.6,2047.4,2.64345767]
[1770466164403,11.49395148,2048.6,2047.7,2.60710311]
[1770466164603,11.01752719,2048.6,2047.7,2.85148311]
[1770466165291,10.69990883,2048.6,2047.3,5.64232035]
[1770466165492,11.49005772,2048.4,2047.2,0.00564243]
[1770466166797,11.49005772,2048.4,2046.8,0.24449]
[1770466166993,11.49005772,2048.2,2046.2,3.31643074]
[1770466167194,11.49005772,2047.7,2045.9,3.31643074]
[1770466167399,11.73444772,2047.7,2045.9,3.31643074]
[1770466167599,11.49005772,2047.5,2045.6,3.31643074]
[1770466167810,11.49005772,2047.5,2045.6,3.32187389]
[1770466168097,11.49005772,2047.3,2045.6,0.00544315]
[1770466168697,11.73449772,2047.3,2045.6,0.00544315]
[1770466168903,11.73451772,2047.1,2045.6,0.00544315]
[1770466169100,11.73451772,2047.1,2044.6,5.59090692]
[1770466169101,11.49005772,2046.3,2044.4,16.40540293]
[1770466169409,11.49005772,2046.3,2044.5,3.56326392]
[1770466169905,11.49005772,2046.3,2044.9,3.31849392]
[1770466170105,11.49619321,2046.3,2044.9,3.32426771]
[1770466170500,11.49619321,2046.3,2044.6,2.78213728]
[1770466170501,5.17680655,2046.2,2044.6,5.10316575]
[1770466170798,5.17680655,2046.2,2044.1,7.14916773]
[1770466170799,11.73463772,2046.1,2044.1,0.24481]
[1770466171098,11.73463772,2046.1,2044.1,3.28553765]
[1770466171300,11.49005772,2045.7,2044.1,3.04072765]
[1770466171506,11.73468772,2045.7,2044.1,0.00387546]
[1770466171802,11.73468772,2045.7,2043.5,3.04072765]
[1770466171998,11.49005772,2045.5,2043.4,0.2449]
[1770466172202,11.49005772,2045.5,2044.0,0.24483]
[1770466173002,11.49005772,2045.5,2044.0,0.24973809]
[1770466173199,0.00613549,2046.3,2044.9,4.02873014]
[1770466173395,11.49005772,2047.3,2045.6,3.15155827]
[1770466173600,11.49005772,2047.3,2045.9,3.39615827]
[1770466173901,11.49005772,2047.3,2045.3,2.78358015]
[1770466174101,11.49005772,2047.3,2045.0,0.24471]
[1770466174302,0.2445,2046.8,2045.0,0.00631597]
[1770466174497,11.49005772,2046.7,2044.3,2.78358015]
[1770466174701,11.49005772,2045.8,2044.1,3.41604751]
[1770466175094,11.49005772,2045.8,2044.1,0.24481]
[1770466175295,11.49005772,2045.8,2043.7,2.78358015]
[1770466175495,11.49005772,2045.3,2043.4,2.78358015]
[1770466175700,11.49005772,2045.3,2043.6,0.00421789]
[1770466175909,11.49005772,2045.3,2043.6,3.20843479]
[1770466176602,0.00399558,2045.3,2044.3,2.80783371]
[1770466176803,11.49017709,2045.6,2044.3,3.05262371]
[1770466177402,11.49017709,2045.6,2044.3,2.80783371]
[1770466177801,11.49613293,2045.6,2044.3,2.80783371]
[1770466178199,11.49613293,2045.6,2044.0,2.55944766]
[1770466179005,11.49613293,2045.6,2043.7,5.87202206]
[1770466179006,11.49613293,2045.6,2043.7,2.55944766]
[1770466179606,11.49613293,2045.6,2044.2,2.55944766]
[1770466180003,0.00595584,2045.6,2044.2,2.55944766]
[1770466180205,0.2444,2047.6,2044.7,0.24474]
[1770466180206,11.48564137,2046.0,2044.7,0.24474]
[1770466180603,11.48564137,2046.0,2044.2,2.78358015]
[1770466180814,11.48564137,2046.0,2044.1,3.22518127]
[1770466181207,11.48957607,2046.0,2044.1,3.22518127]
[1770466182511,11.48957607,2046.0,2043.7,2.78358015]
[1770466182715,11.49017709,2045.1,2043.6,0.00421789]
[1770466183211,11.49017709,2045.1,2043.1,3.55778818]
[1770466183616,11.49017709,2045.1,2042.8,3.31285818]
[1770466184211,11.49017709,2045.1,2042.8,3.31748276]
[1770466184613,3.67485988,2045.5,2044.1,3.59642439]
[1770466184614,11.49017709,2045.4,2044.1,3.59642439]
[1770466184816,11.49017709,2045.7,2044.4,0.24478]
[1770466185019,11.49017709,2045.7,2044.2,3.35160439]
[1770466185220,11.49411179,2046.0,2045.0,3.35160439]
[1770466185422,11.49411179,2046.0,2044.5,3.35160439]
[1770466185819,11.49411179,2046.0,2044.5,0.00572561]
[1770466186427,0.0039347,2046.0,2045.1,3.7298949]
[1770466186627,0.0039347,2046.0,2045.3,3.4852049]
[1770466186928,11.49017709,2046.7,2045.3,3.7298749]
[1770466187428,11.49017709,2046.7,2045.5,3.4852049]
[1770466187821,11.49565427,2046.7,2045.5,3.4852049]
[1770466188218,11.49565427,2046.7,2045.3,3.55678027]
[1770466188626,11.49565427,2046.7,2045.3,0.24467]
[1770466189024,11.49565427,2046.7,2045.6,3.31211027]
[1770466189227,11.49565427,2046.7,2046.1,3.31211027]
[1770466189228,0.00547718,2046.7,2046.1,3.31211027]
[1770466189428,0.00547718,2046.7,2046.1,3.31761456]
[1770466189628,11.49017709,2047.3,2046.1,3.31761456]
[1770466190024,11.49017709,2048.4,2046.5,7.32225902]
[1770466190425,11.49017709,2048.4,2046.5,3.30663309]
[1770466190629,11.49017709,2048.1,2046.2,3.28505291]
[1770466191233,11.49017709,2048.1,2046.1,0.00550429]
[1770466191434,11.49017709,2047.7,2046.1,0.00550429]
[1770466191929,11.49017709,2048.3,2046.2,3.28505291]
[1770466192228,0.00563171,2048.4,2047.3,0.24443]
[1770466192427,0.00563171,2048.4,2047.4,3.36644759]
[1770466192629,11.4958088,2048.4,2047.4,3.36644759]
[1770466193128,11.4958088,2048.4,2047.2,4.01562593]
[1770466193129,11.4958088,2048.4,2046.8,3.36644759]
[1770466193727,11.4958088,2048.4,2046.7,0.2445]
[1770466193921,11.4958088,2048.4,2046.8,3.36644759]
[1770466194123,0.00563171,2048.4,2047.3,3.61087759]
[1770466194324,0.00563171,2048.4,2047.7,3.5420734]
[1770466194526,0.00563171,2048.4,2048.3,11.18394992]
[1770466194823,0.00563171,2048.4,2048.3,14.72602332]
[1770466195021,0.00563171,2048.4,2048.3,11.18394992]
[1770466195222,11.49017709,2049.0,2048.3,11.18394992]
[1770466195433,11.49017709,2049.0,2047.7,0.00579159]
[1770466195825,11.49017709,2049.0,2047.7,3.54786499]
[1770466196227,11.49553293,2049.0,2047.7,3.54786499]
[1770466197131,11.49553293,2049.0,2047.9,3.66700468]
[1770466197723,11.49553293,2049.0,2047.9,3.42264468]
[1770466198031,11.70001814,2049.7,2048.5,3.42264468]
[1770466198830,11.70393318,2049.7,2047.7,3.62977721]
[1770466199034,11.94809318,2049.7,2047.7,3.62977721]
[1770466199335,11.49017709,2049.1,2047.7,0.00579159]
[1770466200235,11.49017709,2048.7,2046.8,3.49465905]
[1770466200434,11.49017709,2048.4,2046.3,3.49465905]
[1770466200737,11.49017709,2048.2,2046.7,3.49465905]
[1770466201039,11.49017709,2048.2,2046.7,3.73916905]
[1770466201233,11.49485907,2048.2,2046.7,3.49960669]
[1770466201543,11.49485907,2048.2,2045.7,3.49465905]
[1770466201544,4.01562593,2047.8,2045.7,3.49465905]
[1770466201832,11.49017709,2047.2,2045.4,3.73931905]
[1770466202233,11.49017709,2047.2,2044.4,6.63883057]